[Event "Titled Tuesday Blitz June 13 Early 2023"]
[White "krucki03"]
[Black "Hayrapetyan, Hovik"]
[BlackFideId "13302639"]
[WhiteElo "2447"]
[BlackElo "2348"]
[Result "1/2-1/2"]
[Round "1"]
[TimeControl "180+2"]
[Date "2023.06.13"]
[WhiteClock "0:00:03"]
[BlackClock "0:00:04"]
[Board "77"]

1. e4 {[%clk 0:03:00]}  c5 {[%clk 0:02:57]} 2. Nf3 {[%clk 0:02:58]}  d6 {[%clk 0:02:57]} 3. Nc3 {[%clk 0:02:55]}  a6 {[%clk 0:02:54]} 4. d4 {[%clk 0:02:46]}  cxd4 {[%clk 0:02:55]} 5. Qxd4 {[%clk 0:02:46]}  Nc6 {[%clk 0:02:54]} 6. Qd3 {[%clk 0:02:46]}  Nf6 {[%clk 0:02:42]} 7. Bg5 {[%clk 0:02:44]}  e6 {[%clk 0:02:40]} 8. Be2 {[%clk 0:02:42]}  Be7 {[%clk 0:02:32]} 9. O-O {[%clk 0:02:40]}  b5 {[%clk 0:02:16]} 10. a3 {[%clk 0:02:34]}  Bb7 {[%clk 0:02:11]} 11. Rad1 {[%clk 0:02:33]}  Qc7 {[%clk 0:02:02]} 12. Rfe1 {[%clk 0:02:29]}  Rc8 {[%clk 0:01:58]} 13. Bf1 {[%clk 0:02:03]}  O-O {[%clk 0:01:57]} 14. Nd4 {[%clk 0:01:56]}  Ne5 {[%clk 0:01:43]} 15. Qg3 {[%clk 0:01:52]}  Kh8 {[%clk 0:01:21]} 16. Nf3 {[%clk 0:01:08]}  Ng6 {[%clk 0:00:55]} 17. Bd3 {[%clk 0:01:05]}  Rfe8 {[%clk 0:00:44]} 18. Be3 {[%clk 0:00:51]}  Qb8 {[%clk 0:00:28]} 19. Bd4 {[%clk 0:00:50]}  e5 {[%clk 0:00:27]} 20. Be3 {[%clk 0:00:49]}  Rxc3 {[%clk 0:00:27]} 21. bxc3 {[%clk 0:00:47]}  Nxe4 {[%clk 0:00:25]} 22. Bxe4 {[%clk 0:00:47]}  Bxe4 {[%clk 0:00:26]} 23. Ng5 {[%clk 0:00:43]}  Bxg5 {[%clk 0:00:22]} 24. Bxg5 {[%clk 0:00:42]}  Bxc2 {[%clk 0:00:22]} 25. Rd2 {[%clk 0:00:37]}  Bb3 {[%clk 0:00:22]} 26. h4 {[%clk 0:00:32]}  h6 {[%clk 0:00:18]} 27. h5 {[%clk 0:00:29]}  Nf8 {[%clk 0:00:17]} 28. Be3 {[%clk 0:00:19]}  Ne6 {[%clk 0:00:16]} 29. Rb1 {[%clk 0:00:18]}  Bc4 {[%clk 0:00:15]} 30. Rbd1 {[%clk 0:00:18]}  d5 {[%clk 0:00:14]} 31. Re1 {[%clk 0:00:19]}  Qd6 {[%clk 0:00:12]} 32. f3 {[%clk 0:00:17]}  f6 {[%clk 0:00:12]} 33. Qg6 {[%clk 0:00:15]}  Re7 {[%clk 0:00:12]} 34. a4 {[%clk 0:00:11]}  Nf8 {[%clk 0:00:11]} 35. Qf5 {[%clk 0:00:11]}  bxa4 {[%clk 0:00:11]} 36. Rb1 {[%clk 0:00:11]}  a3 {[%clk 0:00:08]} 37. Qc8 {[%clk 0:00:09]}  Rc7 {[%clk 0:00:09]} 38. Qe8 {[%clk 0:00:08]}  Kg8 {[%clk 0:00:05]} 39. Rb8 {[%clk 0:00:08]}  a2 {[%clk 0:00:05]} 40. Qa4 {[%clk 0:00:06]}  Rf7 {[%clk 0:00:04]} 41. Rbb2 {[%clk 0:00:05]}  Ne6 {[%clk 0:00:04]} 42. Rxa2 {[%clk 0:00:05]}  Bxa2 {[%clk 0:00:03]} 43. Rxa2 {[%clk 0:00:06]}  d4 {[%clk 0:00:04]} 44. cxd4 {[%clk 0:00:06]}  exd4 {[%clk 0:00:05]} 45. Bd2 {[%clk 0:00:05]}  Rd7 {[%clk 0:00:05]} 46. Qxa6 {[%clk 0:00:05]}  Qxa6 {[%clk 0:00:06]} 47. Rxa6 {[%clk 0:00:06]}  Kf7 {[%clk 0:00:06]} 48. Kf2 {[%clk 0:00:06]}  Nc5 {[%clk 0:00:07]} 49. Rc6 {[%clk 0:00:05]}  Nd3+ {[%clk 0:00:07]} 50. Ke2 {[%clk 0:00:05]}  Ne5 {[%clk 0:00:08]} 51. Rc8 {[%clk 0:00:04]}  Re7 {[%clk 0:00:07]} 52. Kf2 {[%clk 0:00:04]}  Nd3+ {[%clk 0:00:07]} 53. Kf1 {[%clk 0:00:05]}  Rd7 {[%clk 0:00:05]} 54. Ra8 {[%clk 0:00:04]}  Ne5 {[%clk 0:00:04]} 55. Kf2 {[%clk 0:00:03]}  Nc4 {[%clk 0:00:04]} 56. Bb4 {[%clk 0:00:03]}  d3 {[%clk 0:00:03]} 57. Ra1 {[%clk 0:00:03]}  Ke6 {[%clk 0:00:01]} 58. Rd1 {[%clk 0:00:03]}  Kf5 {[%clk 0:00:02]} 59. g4+ {[%clk 0:00:03]}  Kg5 {[%clk 0:00:02]} 60. Bd2+ {[%clk 0:00:04]}  Nxd2 {[%clk 0:00:03]} 61. Rxd2 {[%clk 0:00:04]}  Kf4 {[%clk 0:00:03]} 62. Rd1 {[%clk 0:00:05]}  d2 {[%clk 0:00:04]} 63. Ke2 {[%clk 0:00:04]}  Rd6 {[%clk 0:00:04]} 64. Kf2 {[%clk 0:00:05]}  Rd3 {[%clk 0:00:05]} 65. Ke2 {[%clk 0:00:05]}  Re3+ {[%clk 0:00:05]} 66. Kxd2 {[%clk 0:00:06]}  Rxf3 {[%clk 0:00:05]} 67. Ra1 {[%clk 0:00:06]}  Rg3 {[%clk 0:00:06]} 68. Ke2 {[%clk 0:00:07]}  Rxg4 {[%clk 0:00:06]} 69. Ra4+ {[%clk 0:00:07]}  Kg5 {[%clk 0:00:06]} 70. Ra5+ {[%clk 0:00:07]}  Kh4 {[%clk 0:00:06]} 71. Kf3 {[%clk 0:00:08]}  Rg5 {[%clk 0:00:06]} 72. Ra1 {[%clk 0:00:08]}  Kxh5 {[%clk 0:00:06]} 73. Rh1+ {[%clk 0:00:08]}  Kg6 {[%clk 0:00:07]} 74. Kf4 {[%clk 0:00:09]}  h5 {[%clk 0:00:07]} 75. Ke4 {[%clk 0:00:10]}  Rg4+ {[%clk 0:00:07]} 76. Kf3 {[%clk 0:00:10]}  f5 {[%clk 0:00:07]} 77. Ra1 {[%clk 0:00:11]}  Kg5 {[%clk 0:00:07]} 78. Ra7 {[%clk 0:00:11]}  g6 {[%clk 0:00:08]} 79. Kf2 {[%clk 0:00:11]}  h4 {[%clk 0:00:09]} 80. Ra8 {[%clk 0:00:12]}  Rc4 {[%clk 0:00:08]} 81. Rh8 {[%clk 0:00:13]}  Kg4 {[%clk 0:00:09]} 82. Kg1 {[%clk 0:00:13]}  g5 {[%clk 0:00:09]} 83. Rd8 {[%clk 0:00:13]}  f4 {[%clk 0:00:07]} 84. Rd2 {[%clk 0:00:13]}  Rc3 {[%clk 0:00:07]} 85. Kh2 {[%clk 0:00:13]}  h3 {[%clk 0:00:06]} 86. Ra2 {[%clk 0:00:13]}  Kh4 {[%clk 0:00:06]} 87. Rf2 {[%clk 0:00:13]}  Rb3 {[%clk 0:00:04]} 88. Rf1 {[%clk 0:00:08]}  Rb2+ {[%clk 0:00:04]} 89. Kh1 {[%clk 0:00:06]}  g4 {[%clk 0:00:02]} 90. Rg1 {[%clk 0:00:05]}  Ra2 {[%clk 0:00:01]} 91. Rf1 {[%clk 0:00:06]}  Rc2 {[%clk 0:00:02]} 92. Rxf4 {[%clk 0:00:05]}  Rc1+ {[%clk 0:00:02]} 93. Kh2 {[%clk 0:00:05]}  Rc2+ {[%clk 0:00:03]} 94. Kh1 {[%clk 0:00:06]}  Kg3 {[%clk 0:00:04]} 95. Rf1 {[%clk 0:00:05]}  Rh2+ {[%clk 0:00:04]} 96. Kg1 {[%clk 0:00:05]}  Rc2 {[%clk 0:00:04]} 97. Kh1 {[%clk 0:00:04]}  Kh4 {[%clk 0:00:04]} 98. Rf4 {[%clk 0:00:03]} 1/2-1/2


[Site "https://www.chess.com"]

[Event "Titled Tuesday Blitz June 13 Early 2023"]
[White "Weetik, Vjacheslav"]
[Black "Principe, Alexander"]
[WhiteFideId "4153472"]
[BlackFideId "3804542"]
[WhiteElo "2469"]
[BlackElo "2203"]
[Result "1-0"]
[Round "1"]
[TimeControl "180+2"]
[Date "2023.06.13"]
[WhiteClock "0:00:19"]
[BlackClock "0:00:05"]
[Board "78"]

1. d4 {[%clk 0:02:59]}  Nf6 {[%clk 0:03:00]} 2. c4 {[%clk 0:02:59]}  g6 {[%clk 0:02:59]} 3. Nc3 {[%clk 0:02:57]}  Bg7 {[%clk 0:02:59]} 4. e4 {[%clk 0:02:57]}  O-O {[%clk 0:02:59]} 5. Nf3 {[%clk 0:02:57]}  d6 {[%clk 0:02:58]} 6. Be2 {[%clk 0:02:56]}  e5 {[%clk 0:02:55]} 7. O-O {[%clk 0:02:56]}  Nc6 {[%clk 0:02:55]} 8. dxe5 {[%clk 0:02:56]}  dxe5 {[%clk 0:02:45]} 9. Bg5 {[%clk 0:02:56]}  Bg4 {[%clk 0:02:38]} 10. Qxd8 {[%clk 0:02:40]}  Nxd8 {[%clk 0:02:24]} 11. Bxf6 {[%clk 0:02:38]}  Bxf6 {[%clk 0:02:24]} 12. Nd5 {[%clk 0:02:38]}  Bg7 {[%clk 0:02:23]} 13. Nxc7 {[%clk 0:02:37]}  Rc8 {[%clk 0:02:23]} 14. Nd5 {[%clk 0:02:37]}  Re8 {[%clk 0:02:19]} 15. b3 {[%clk 0:02:09]}  Ne6 {[%clk 0:02:17]} 16. Rfd1 {[%clk 0:02:05]}  h5 {[%clk 0:02:14]} 17. Kf1 {[%clk 0:01:56]}  b6 {[%clk 0:02:09]} 18. Ne1 {[%clk 0:01:45]}  Nd4 {[%clk 0:02:06]} 19. Bxg4 {[%clk 0:01:35]}  hxg4 {[%clk 0:02:07]} 20. Rd2 {[%clk 0:01:34]}  Re6 {[%clk 0:01:43]} 21. Nc2 {[%clk 0:01:27]}  Nc6 {[%clk 0:01:41]} 22. Rd3 {[%clk 0:01:15]}  f5 {[%clk 0:01:40]} 23. Re1 {[%clk 0:01:08]}  Bh6 {[%clk 0:01:38]} 24. h3 {[%clk 0:01:05]}  gxh3 {[%clk 0:01:34]} 25. Rxh3 {[%clk 0:01:05]}  Kg7 {[%clk 0:01:33]} 26. exf5 {[%clk 0:00:56]}  gxf5 {[%clk 0:01:33]} 27. Nce3 {[%clk 0:00:50]}  Nd4 {[%clk 0:01:31]} 28. g4 {[%clk 0:00:43]}  Rf8 {[%clk 0:01:14]} 29. Nxf5+ {[%clk 0:00:37]}  Nxf5 {[%clk 0:01:14]} 30. gxf5 {[%clk 0:00:37]}  Rxf5 {[%clk 0:01:15]} 31. Ke2 {[%clk 0:00:24]}  Rg6 {[%clk 0:00:56]} 32. Ne7 {[%clk 0:00:22]}  Bd2 {[%clk 0:00:39]} 33. Nxf5+ {[%clk 0:00:20]}  Kf8 {[%clk 0:00:40]} 34. Kxd2 {[%clk 0:00:20]}  Rg1 {[%clk 0:00:37]} 35. Rxg1 {[%clk 0:00:19]}  e4 {[%clk 0:00:36]} 36. Rh6 {[%clk 0:00:20]}  Kf7 {[%clk 0:00:05]} 37. Rg7+ {[%clk 0:00:19]} 1-0


[Site "https://www.chess.com"]

[Event "Titled Tuesday Blitz June 13 Early 2023"]
[White "ArchibaldCerveza29"]
[Black "Sattarov, Bobir"]
[BlackFideId "14203081"]
[WhiteElo "2445"]
[BlackElo "2351"]
[Result "1-0"]
[Round "1"]
[TimeControl "180+2"]
[Date "2023.06.13"]
[WhiteClock "0:00:10"]
[BlackClock "0:00:00"]
[Board "79"]

1. e4 {[%clk 0:03:00]}  e5 {[%clk 0:02:57]} 2. Nf3 {[%clk 0:03:00]}  Nc6 {[%clk 0:02:58]} 3. Bc4 {[%clk 0:02:59]}  Nf6 {[%clk 0:02:56]} 4. d3 {[%clk 0:02:59]}  Be7 {[%clk 0:02:56]} 5. O-O {[%clk 0:02:58]}  O-O {[%clk 0:02:55]} 6. a4 {[%clk 0:02:56]}  d6 {[%clk 0:02:54]} 7. Re1 {[%clk 0:02:52]}  Kh8 {[%clk 0:02:53]} 8. c3 {[%clk 0:02:47]}  Ng8 {[%clk 0:02:52]} 9. d4 {[%clk 0:02:47]}  f5 {[%clk 0:02:51]} 10. dxe5 {[%clk 0:02:45]}  fxe4 {[%clk 0:02:51]} 11. Rxe4 {[%clk 0:02:36]}  Rxf3 {[%clk 0:02:46]} 12. gxf3 {[%clk 0:01:57]}  Nxe5 {[%clk 0:02:44]} 13. Bf1 {[%clk 0:01:55]}  Bf5 {[%clk 0:02:31]} 14. Re1 {[%clk 0:01:52]}  Qf8 {[%clk 0:02:29]} 15. Nd2 {[%clk 0:01:26]}  Nd3 {[%clk 0:02:21]} 16. Re3 {[%clk 0:01:17]}  Nf4 {[%clk 0:02:06]} 17. Ne4 {[%clk 0:01:10]}  d5 {[%clk 0:02:00]} 18. Ng3 {[%clk 0:01:07]}  Bd6 {[%clk 0:02:00]} 19. Qe1 {[%clk 0:00:54]}  Bg6 {[%clk 0:01:54]} 20. a5 {[%clk 0:00:51]}  a6 {[%clk 0:01:54]} 21. Ra4 {[%clk 0:00:50]}  h5 {[%clk 0:01:45]} 22. Ne2 {[%clk 0:00:28]}  Nd3 {[%clk 0:01:42]} 23. Qd1 {[%clk 0:00:29]}  Nc5 {[%clk 0:00:57]} 24. Rd4 {[%clk 0:00:28]}  Nf6 {[%clk 0:00:52]} 25. b4 {[%clk 0:00:25]}  Ncd7 {[%clk 0:00:52]} 26. Kh1 {[%clk 0:00:24]}  Ne5 {[%clk 0:00:34]} 27. Ng3 {[%clk 0:00:18]}  Nc6 {[%clk 0:00:30]} 28. Rxd5 {[%clk 0:00:12]}  Nxd5 {[%clk 0:00:29]} 29. Qxd5 {[%clk 0:00:13]}  Qf7 {[%clk 0:00:25]} 30. Qxf7 {[%clk 0:00:13]}  Bxf7 {[%clk 0:00:26]} 31. Bh3 {[%clk 0:00:12]}  Rd8 {[%clk 0:00:20]} 32. Re1 {[%clk 0:00:12]}  Ne5 {[%clk 0:00:17]} 33. Kg2 {[%clk 0:00:12]}  Nd3 {[%clk 0:00:17]} 34. Rd1 {[%clk 0:00:12]}  Nxc1 {[%clk 0:00:17]} 35. Rxc1 {[%clk 0:00:13]}  Bf4 {[%clk 0:00:17]} 36. Re1 {[%clk 0:00:12]}  Bg5 {[%clk 0:00:15]} 37. Ne4 {[%clk 0:00:12]}  Bh4 {[%clk 0:00:15]} 38. Re2 {[%clk 0:00:11]}  b6 {[%clk 0:00:15]} 39. Rd2 {[%clk 0:00:11]}  Rxd2 {[%clk 0:00:13]} 40. Nxd2 {[%clk 0:00:12]}  bxa5 {[%clk 0:00:14]} 41. bxa5 {[%clk 0:00:13]}  Be7 {[%clk 0:00:13]} 42. Bc8 {[%clk 0:00:11]}  c5 {[%clk 0:00:05]} 43. Bxa6 {[%clk 0:00:11]}  Bd8 {[%clk 0:00:05]} 44. Bc4 {[%clk 0:00:10]}  Bg6 {[%clk 0:00:01]} 45. a6 {[%clk 0:00:11]}  Bb6 {[%clk 0:00:01]} 46. Ne4 {[%clk 0:00:12]}  Bxe4 {[%clk 0:00:01]} 47. fxe4 {[%clk 0:00:12]}  g5 {[%clk 0:00:02]} 48. Kf3 {[%clk 0:00:13]}  Kg7 {[%clk 0:00:02]} 49. Ke3 {[%clk 0:00:11]}  Kf6 {[%clk 0:00:02]} 50. f4 {[%clk 0:00:12]}  gxf4+ {[%clk 0:00:01]} 51. Kxf4 {[%clk 0:00:13]}  Bc7+ {[%clk 0:00:02]} 52. Kf3 {[%clk 0:00:12]}  Bb8 {[%clk 0:00:03]} 53. h3 {[%clk 0:00:11]}  Ke5 {[%clk 0:00:03]} 54. Bd5 {[%clk 0:00:11]}  Ba7 {[%clk 0:00:03]} 55. c4 {[%clk 0:00:11]}  Bb8 {[%clk 0:00:03]} 56. Kg3 {[%clk 0:00:11]}  Kf6+ {[%clk 0:00:02]} 57. Kh4 {[%clk 0:00:12]}  Kg6 {[%clk 0:00:02]} 58. Bc6 {[%clk 0:00:12]}  Kh6 {[%clk 0:00:01]} 59. Be8 {[%clk 0:00:12]}  Be5 {[%clk 0:00:00]} 60. a7 {[%clk 0:00:10]} 1-0


[Site "https://www.chess.com"]

[Event "Titled Tuesday Blitz June 13 Early 2023"]
[White "Atakhan, Abtin"]
[Black "Vega Gutierrez, Sabrina"]
[WhiteFideId "22502203"]
[BlackFideId "2219026"]
[WhiteElo "2008"]
[BlackElo "2209"]
[Result "0-1"]
[Round "1"]
[TimeControl "180+2"]
[Date "2023.06.13"]
[WhiteClock "0:00:01"]
[BlackClock "0:00:28"]
[Board "80"]

1. e4 {[%clk 0:03:00]}  c5 {[%clk 0:02:58]} 2. Nf3 {[%clk 0:03:01]}  e6 {[%clk 0:02:59]} 3. Nc3 {[%clk 0:03:00]}  Nc6 {[%clk 0:02:57]} 4. Bb5 {[%clk 0:03:00]}  Nge7 {[%clk 0:02:56]} 5. O-O {[%clk 0:02:57]}  Nd4 {[%clk 0:02:53]} 6. Re1 {[%clk 0:02:52]}  a6 {[%clk 0:02:53]} 7. Bf1 {[%clk 0:02:50]}  Nec6 {[%clk 0:02:38]} 8. Nd5 {[%clk 0:02:22]}  d6 {[%clk 0:02:32]} 9. Ne3 {[%clk 0:02:19]}  Be7 {[%clk 0:02:31]} 10. c3 {[%clk 0:02:18]}  Nxf3+ {[%clk 0:02:29]} 11. Qxf3 {[%clk 0:02:18]}  O-O {[%clk 0:02:25]} 12. Qd1 {[%clk 0:02:12]}  d5 {[%clk 0:02:15]} 13. d3 {[%clk 0:02:04]}  d4 {[%clk 0:02:11]} 14. Nc2 {[%clk 0:01:51]}  e5 {[%clk 0:02:06]} 15. Be2 {[%clk 0:01:46]}  Be6 {[%clk 0:02:02]} 16. c4 {[%clk 0:01:42]}  Qd7 {[%clk 0:02:02]} 17. Rb1 {[%clk 0:01:40]}  b5 {[%clk 0:02:01]} 18. b3 {[%clk 0:01:36]}  Rfb8 {[%clk 0:01:58]} 19. Bd2 {[%clk 0:01:35]}  b4 {[%clk 0:01:46]} 20. Rf1 {[%clk 0:01:32]}  a5 {[%clk 0:01:46]} 21. h3 {[%clk 0:01:28]}  a4 {[%clk 0:01:44]} 22. Ra1 {[%clk 0:01:09]}  Rb7 {[%clk 0:01:42]} 23. f4 {[%clk 0:01:08]}  exf4 {[%clk 0:01:39]} 24. Bxf4 {[%clk 0:01:06]}  Rba7 {[%clk 0:01:39]} 25. Rb1 {[%clk 0:01:00]}  axb3 {[%clk 0:01:37]} 26. axb3 {[%clk 0:01:00]}  Ra2 {[%clk 0:01:37]} 27. Qd2 {[%clk 0:00:57]}  R8a3 {[%clk 0:01:29]} 28. Qd1 {[%clk 0:00:51]}  Ra5 {[%clk 0:01:27]} 29. Qd2 {[%clk 0:00:50]}  Qa7 {[%clk 0:01:25]} 30. Bd1 {[%clk 0:00:50]}  Bf6 {[%clk 0:01:05]} 31. Qe1 {[%clk 0:00:48]}  Be5 {[%clk 0:01:03]} 32. Qg3 {[%clk 0:00:34]}  Qc7 {[%clk 0:01:03]} 33. Ne1 {[%clk 0:00:31]}  Bxf4 {[%clk 0:01:03]} 34. Rxf4 {[%clk 0:00:31]}  Qe5 {[%clk 0:00:59]} 35. Nf3 {[%clk 0:00:28]}  Qb8 {[%clk 0:00:59]} 36. Ne1 {[%clk 0:00:18]}  h6 {[%clk 0:00:57]} 37. Bg4 {[%clk 0:00:16]}  Bxg4 {[%clk 0:00:51]} 38. Qxg4 {[%clk 0:00:14]}  Ne5 {[%clk 0:00:51]} 39. Qf5 {[%clk 0:00:13]}  Ra1 {[%clk 0:00:44]} 40. Rxa1 {[%clk 0:00:13]}  Rxa1 {[%clk 0:00:44]} 41. Rf1 {[%clk 0:00:14]}  Qc7 {[%clk 0:00:32]} 42. Qf4 {[%clk 0:00:11]}  Qe7 {[%clk 0:00:31]} 43. Qd2 {[%clk 0:00:09]}  Qg5 {[%clk 0:00:30]} 44. Qb2 {[%clk 0:00:08]}  Rd1 {[%clk 0:00:29]} 45. Qe2 {[%clk 0:00:04]}  Rd2 {[%clk 0:00:29]} 46. Nf3 {[%clk 0:00:01]}  Rxe2 {[%clk 0:00:28]} 0-1


[Site "https://www.chess.com"]

[Event "Titled Tuesday Blitz June 13 Early 2023"]
[White "Aradhya, Garg"]
[Black "FunnyDuck66"]
[WhiteFideId "25006746"]
[WhiteElo "2263"]
[BlackElo "2438"]
[Result "1-0"]
[Round "1"]
[TimeControl "180+2"]
[Date "2023.06.13"]
[WhiteClock "0:01:11"]
[BlackClock "0:00:00"]
[Board "82"]

1. d4 {[%clk 0:03:00]}  Nf6 {[%clk 0:02:57]} 2. c4 {[%clk 0:03:01]}  e6 {[%clk 0:02:55]} 3. Nc3 {[%clk 0:03:02]}  Bb4 {[%clk 0:02:53]} 4. e3 {[%clk 0:03:02]}  O-O {[%clk 0:02:50]} 5. Bd2 {[%clk 0:03:03]}  d6 {[%clk 0:02:48]} 6. Bd3 {[%clk 0:03:02]}  Nbd7 {[%clk 0:02:47]} 7. Nge2 {[%clk 0:03:01]}  e5 {[%clk 0:02:46]} 8. O-O {[%clk 0:03:02]}  Re8 {[%clk 0:02:44]} 9. Qc2 {[%clk 0:03:01]}  Qe7 {[%clk 0:02:35]} 10. Ng3 {[%clk 0:03:01]}  Nf8 {[%clk 0:02:29]} 11. f3 {[%clk 0:02:46]}  g6 {[%clk 0:02:12]} 12. a3 {[%clk 0:02:44]}  Bxc3 {[%clk 0:02:08]} 13. Bxc3 {[%clk 0:02:45]}  b6 {[%clk 0:01:53]} 14. b4 {[%clk 0:01:58]}  Bb7 {[%clk 0:01:49]} 15. d5 {[%clk 0:01:55]}  Bc8 {[%clk 0:01:43]} 16. a4 {[%clk 0:01:54]}  a5 {[%clk 0:01:38]} 17. bxa5 {[%clk 0:01:54]}  bxa5 {[%clk 0:01:38]} 18. Rfb1 {[%clk 0:01:50]}  N8d7 {[%clk 0:01:35]} 19. Rb5 {[%clk 0:01:49]}  Nc5 {[%clk 0:01:31]} 20. Rxa5 {[%clk 0:01:49]}  Rxa5 {[%clk 0:01:25]} 21. Bxa5 {[%clk 0:01:50]}  Ba6 {[%clk 0:01:12]} 22. e4 {[%clk 0:01:43]}  Ra8 {[%clk 0:01:07]} 23. Bd2 {[%clk 0:01:43]}  Nfd7 {[%clk 0:01:03]} 24. Be2 {[%clk 0:01:43]}  Bb7 {[%clk 0:00:43]} 25. a5 {[%clk 0:01:43]}  Qd8 {[%clk 0:00:42]} 26. Bf1 {[%clk 0:01:27]}  Ba6 {[%clk 0:00:31]} 27. Ne2 {[%clk 0:01:26]}  Rb8 {[%clk 0:00:29]} 28. Rb1 {[%clk 0:01:25]}  Rxb1 {[%clk 0:00:29]} 29. Qxb1 {[%clk 0:01:25]}  Bxc4 {[%clk 0:00:30]} 30. Nc3 {[%clk 0:01:26]}  Bxf1 {[%clk 0:00:28]} 31. Kxf1 {[%clk 0:01:26]}  Qa8 {[%clk 0:00:26]} 32. Qb5 {[%clk 0:01:26]}  Qa6 {[%clk 0:00:24]} 33. Be3 {[%clk 0:01:25]}  Kg7 {[%clk 0:00:20]} 34. Qxa6 {[%clk 0:01:11]}  Nxa6 {[%clk 0:00:19]} 35. Ke2 {[%clk 0:01:11]}  f5 {[%clk 0:00:19]} 36. Kd3 {[%clk 0:01:11]}  f4 {[%clk 0:00:16]} 37. Bf2 {[%clk 0:01:12]}  g5 {[%clk 0:00:03]} 38. Kc4 {[%clk 0:01:12]}  Ndb8 {[%clk 0:00:01]} 39. Kb5 {[%clk 0:01:11]}  Kf7 {[%clk 0:00:01]} 40. Ba7 {[%clk 0:01:11]}  Ke7 {[%clk 0:00:02]} 41. Bxb8 {[%clk 0:01:10]}  Nxb8 {[%clk 0:00:03]} 42. a6 {[%clk 0:01:11]}  Nd7 {[%clk 0:00:00]} 43. Na4 {[%clk 0:01:11]} 1-0


[Site "https://www.chess.com"]

[Event "Titled Tuesday Blitz June 13 Early 2023"]
[White "Gadimbayli, Abdulla"]
[Black "Kuznetsov, Mikhail"]
[WhiteFideId "13404938"]
[BlackFideId "4117190"]
[WhiteElo "2386"]
[BlackElo "1981"]
[Result "1-0"]
[Round "1"]
[TimeControl "180+2"]
[Date "2023.06.13"]
[WhiteClock "0:00:43"]
[BlackClock "0:00:16"]
[Board "84"]

1. e4 {[%clk 0:03:00]}  c6 {[%clk 0:02:54]} 2. Nf3 {[%clk 0:03:01]}  d5 {[%clk 0:02:53]} 3. exd5 {[%clk 0:03:02]}  cxd5 {[%clk 0:02:53]} 4. Ne5 {[%clk 0:03:02]}  Nc6 {[%clk 0:02:51]} 5. d4 {[%clk 0:03:03]}  Nf6 {[%clk 0:02:50]} 6. c3 {[%clk 0:03:03]}  e6 {[%clk 0:02:46]} 7. Nd2 {[%clk 0:03:02]}  Bd6 {[%clk 0:02:46]} 8. f4 {[%clk 0:03:02]}  O-O {[%clk 0:02:43]} 9. Bd3 {[%clk 0:03:02]}  Bd7 {[%clk 0:02:35]} 10. O-O {[%clk 0:03:01]}  Be8 {[%clk 0:02:24]} 11. Qe2 {[%clk 0:02:50]}  Qe7 {[%clk 0:02:16]} 12. Kh1 {[%clk 0:02:45]}  Nd7 {[%clk 0:02:12]} 13. Ndf3 {[%clk 0:02:29]}  f6 {[%clk 0:02:10]} 14. Nxd7 {[%clk 0:01:36]}  Bxd7 {[%clk 0:02:06]} 15. Bd2 {[%clk 0:01:36]}  Rae8 {[%clk 0:02:04]} 16. Rae1 {[%clk 0:01:37]}  g6 {[%clk 0:01:57]} 17. a3 {[%clk 0:01:28]}  e5 {[%clk 0:01:56]} 18. fxe5 {[%clk 0:01:28]}  fxe5 {[%clk 0:01:56]} 19. Bh6 {[%clk 0:01:09]}  e4 {[%clk 0:01:35]} 20. Bxf8 {[%clk 0:00:57]}  Rxf8 {[%clk 0:01:33]} 21. Bb5 {[%clk 0:00:57]}  exf3 {[%clk 0:00:53]} 22. Qxe7 {[%clk 0:00:56]}  Bxe7 {[%clk 0:00:28]} 23. Bxc6 {[%clk 0:00:53]}  bxc6 {[%clk 0:00:24]} 24. Rxe7 {[%clk 0:00:42]}  fxg2+ {[%clk 0:00:23]} 25. Kxg2 {[%clk 0:00:43]}  Bh3+ {[%clk 0:00:23]} 26. Kxh3 {[%clk 0:00:44]}  Rxf1 {[%clk 0:00:23]} 27. Rxa7 {[%clk 0:00:43]}  Rf2 {[%clk 0:00:23]} 28. Rb7 {[%clk 0:00:43]}  Rf3+ {[%clk 0:00:18]} 29. Kg2 {[%clk 0:00:42]}  Rd3 {[%clk 0:00:16]} 30. a4 {[%clk 0:00:40]}  g5 {[%clk 0:00:12]} 31. a5 {[%clk 0:00:38]}  Rd2+ {[%clk 0:00:11]} 32. Kg3 {[%clk 0:00:36]}  h5 {[%clk 0:00:10]} 33. a6 {[%clk 0:00:37]}  Rd3+ {[%clk 0:00:11]} 34. Kf2 {[%clk 0:00:37]}  Rd2+ {[%clk 0:00:12]} 35. Ke3 {[%clk 0:00:37]}  Rd1 {[%clk 0:00:12]} 36. a7 {[%clk 0:00:37]}  Ra1 {[%clk 0:00:13]} 37. Rb8+ {[%clk 0:00:38]}  Kf7 {[%clk 0:00:14]} 38. a8=Q {[%clk 0:00:38]}  Rxa8 {[%clk 0:00:12]} 39. Rxa8 {[%clk 0:00:39]}  Ke6 {[%clk 0:00:12]} 40. Rh8 {[%clk 0:00:39]}  Kf5 {[%clk 0:00:13]} 41. Rxh5 {[%clk 0:00:40]}  Kg4 {[%clk 0:00:14]} 42. Rh6 {[%clk 0:00:40]}  Kf5 {[%clk 0:00:13]} 43. Rxc6 {[%clk 0:00:41]}  Kg4 {[%clk 0:00:14]} 44. b4 {[%clk 0:00:41]}  Kh3 {[%clk 0:00:13]} 45. b5 {[%clk 0:00:42]}  g4 {[%clk 0:00:13]} 46. b6 {[%clk 0:00:43]}  Kxh2 {[%clk 0:00:14]} 47. Rh6+ {[%clk 0:00:43]}  Kg1 {[%clk 0:00:14]} 48. b7 {[%clk 0:00:44]}  g3 {[%clk 0:00:14]} 49. b8=Q {[%clk 0:00:44]}  g2 {[%clk 0:00:15]} 50. Qg3 {[%clk 0:00:42]}  Kf1 {[%clk 0:00:16]} 51. Qf2# {[%clk 0:00:43]} 1-0


[Site "https://www.chess.com"]

[Event "Titled Tuesday Blitz June 13 Early 2023"]
[White "Urquhart, Ed"]
[Black "Maximov, Dmitry"]
[WhiteFideId "2603748"]
[BlackFideId "14105659"]
[WhiteElo "2184"]
[BlackElo "2494"]
[Result "0-1"]
[Round "1"]
[TimeControl "180+2"]
[Date "2023.06.13"]
[WhiteClock "0:00:22"]
[BlackClock "0:01:11"]
[Board "87"]

1. e4 {[%clk 0:03:00]}  c5 {[%clk 0:02:59]} 2. Nc3 {[%clk 0:02:59]}  Nc6 {[%clk 0:02:59]} 3. f4 {[%clk 0:02:58]}  e6 {[%clk 0:02:57]} 4. Nf3 {[%clk 0:02:58]}  a6 {[%clk 0:02:57]} 5. g3 {[%clk 0:02:57]}  b5 {[%clk 0:02:56]} 6. Bg2 {[%clk 0:02:57]}  Bb7 {[%clk 0:02:56]} 7. d3 {[%clk 0:02:57]}  Nge7 {[%clk 0:02:55]} 8. O-O {[%clk 0:02:57]}  g6 {[%clk 0:02:50]} 9. e5 {[%clk 0:02:53]}  d5 {[%clk 0:02:46]} 10. exd6 {[%clk 0:02:50]}  Nf5 {[%clk 0:02:46]} 11. Ne4 {[%clk 0:02:48]}  Bg7 {[%clk 0:02:19]} 12. Kh1 {[%clk 0:02:47]}  Qb6 {[%clk 0:02:15]} 13. g4 {[%clk 0:02:42]}  Nfd4 {[%clk 0:02:14]} 14. Nxd4 {[%clk 0:02:42]}  Nxd4 {[%clk 0:02:10]} 15. Be3 {[%clk 0:02:34]}  f5 {[%clk 0:02:05]} 16. Ng5 {[%clk 0:02:22]}  Bxg2+ {[%clk 0:02:04]} 17. Kxg2 {[%clk 0:02:23]}  Qxd6 {[%clk 0:02:03]} 18. c3 {[%clk 0:02:18]}  Nc6 {[%clk 0:02:03]} 19. Qf3 {[%clk 0:02:18]}  O-O {[%clk 0:02:01]} 20. Rae1 {[%clk 0:02:06]}  Rae8 {[%clk 0:02:00]} 21. gxf5 {[%clk 0:01:56]}  exf5 {[%clk 0:01:56]} 22. Bf2 {[%clk 0:01:52]}  h6 {[%clk 0:01:55]} 23. Nh3 {[%clk 0:01:51]}  Rd8 {[%clk 0:01:52]} 24. Re3 {[%clk 0:01:47]}  b4 {[%clk 0:01:44]} 25. Rfe1 {[%clk 0:01:44]}  Rf6 {[%clk 0:01:35]} 26. Re8+ {[%clk 0:01:29]}  Rxe8 {[%clk 0:01:34]} 27. Rxe8+ {[%clk 0:01:30]}  Kf7 {[%clk 0:01:27]} 28. Rc8 {[%clk 0:01:20]}  bxc3 {[%clk 0:01:27]} 29. bxc3 {[%clk 0:01:19]}  Re6 {[%clk 0:01:27]} 30. Ng1 {[%clk 0:01:09]}  Bxc3 {[%clk 0:01:26]} 31. Ne2 {[%clk 0:01:07]}  Bf6 {[%clk 0:01:25]} 32. Ng3 {[%clk 0:01:04]}  a5 {[%clk 0:01:15]} 33. Nxf5 {[%clk 0:00:51]}  gxf5 {[%clk 0:01:15]} 34. Qh5+ {[%clk 0:00:52]}  Kg7 {[%clk 0:01:16]} 35. Qxf5 {[%clk 0:00:47]}  Ne7 {[%clk 0:01:14]} 36. Qg4+ {[%clk 0:00:46]}  Kh7 {[%clk 0:01:15]} 37. Re8 {[%clk 0:00:37]}  Bg7 {[%clk 0:01:11]} 38. f5 {[%clk 0:00:30]}  Qd5+ {[%clk 0:01:11]} 39. Kg1 {[%clk 0:00:22]}  Nxf5 {[%clk 0:01:11]} 0-1


[Site "https://www.chess.com"]